Cogmind - Beta 13 @@@ ROGUE MODE // 2024.04.11 @ 23:34:13 Player: Morphaana Result: Destroyed by Y-45 Defender with Beam Rifle Performance ------------- Evolutions (1) 500 Regions Visited (2) 400 Robots Destroyed (27) 135 Value Destroyed (651) 651 Prototype IDs (0) 0 Alien Tech Used (0) 0 Bonus (0) 0 TOTAL SCORE: 1686 Bonus ------- None Cogmind --------- Core Integrity 0/400 Matter 229/300 Energy 100/100 System Corruption 0% Temperature Cool (9) Movement Core (350) Ox6 Location -9/Materials Parts ------- > --- POWER (1) -------- (None) > --- PROPULSION (3) --- (None) > --- UTILITY (3) ------ Large Storage Unit Signal Interpreter > --- WEAPON (2) ------- (None) > --- INVENTORY (15) --- Light Ion Engine Medium Storage Unit Large Storage Unit Sensor Array Sensor Array Signal Interpreter Medium Armor Plating Datajack Peak State ------------ > --- POWER ------------ Light Ion Engine > --- PROPULSION ------- Light Treads Light Treads Light Treads > --- UTILITY ---------- Large Storage Unit Sensor Array Signal Interpreter > --- WEAPON ----------- Heavy Assault Rifle Heavy Assault Rifle > --- INVENTORY -------- Light Ion Engine Light Nuclear Core Light Treads Improved Treads Medium Storage Unit Large Storage Unit Sensor Array Signal Interpreter Medium Armor Plating Medium Armor Plating Heavy Assault Rifle Grenade Launcher Grenade Launcher Datajack [Rating: 13] Favorites ----------- Power Light Ion Engine Engine Light Ion Engine Power Core Light Nuclear Core Propulsion Light Treads Treads Light Treads Utility Large Storage Unit Device Sensor Array Storage Large Storage Unit Processor Signal Interpreter Protection Medium Armor Plating Weapon Heavy Assault Rifle Ballistic Gun Heavy Assault Rifle Launcher Grenade Launcher Special Weapon Mining Laser Build | -11 -10 -9 ------- Run | Yrd Mat Mat Slots Evolved 2 | . . 2 Power . | . . . Propulsion 1 | . . 1 Utility 1 | . . 1 Weapon . | . . . Parts Attached 31 | 6 9 16 Power 2 | 1 . 1 Engine 1 | 1 . . Core 1 | . . 1 Reactor . | . . . Propulsion 6 | 2 . 4 Treads 6 | 2 . 4 Leg . | . . . Wheel . | . . . Hover . | . . . Flight . | . . . Utility 10 | 1 6 3 Device 1 | . . 1 Storage 5 | 1 3 1 Processor 1 | . 1 . Hackware . | . . . Protection 3 | . 2 1 Artifact . | . . . Weapon 13 | 2 3 8 Energy Gun . | . . . Energy Cannon . | . . . Ballistic Gun 8 | 2 2 4 Ballistic Cannon . | . . . Launcher 4 | . 1 3 Special Weapon 1 | . . 1 Impact Weapon . | . . . Slashing Weapon . | . . . Piercing Weapon . | . . . Special Melee Weapon . | . . . Unidentified Prototypes . | . . . Parts Lost 14 | . . 14 Power 2 | . . 2 Propulsion 5 | . . 5 Utility 1 | . . 1 Weapon 6 | . . 6 Highest Loss Streak 14 | . . 14 To Critical Strikes . | . . . Average Slot Usage (%) 96 | . 98 88 Engine 12 | . 14 8 Treads 28 | . 28 29 Storage 15 | . 15 15 Processor 5 | . 4 11 Protection 5 | . 6 . Ballistic Gun 20 | . 21 12 Launcher 5 | . 5 4 Naked Turns . | . . . Heaviest Build 49 | 11 49 49 Greatest Support 60 | 40 40 60 Greatest Overweight (x) 2 | . 1 2 Average Overweight (x) . | . . . Largest Inventory Capacity 15 | 8 15 15 Average Capacity 14 | 6 14 15 Most Carried 15 | 2 15 15 Average Carried 10 | 1 10 13 Final Capacity 15 | 8 15 15 Final Carried 15 | 2 15 8 Class Distribution -------------------- 91% | Mutant 8% | Scavenger-Mutant Dominant Class ---------------- Mutant | -10/Materials Mutant | -9/Materials Resources | -11 -10 -9 ----------- Run | Yrd Mat Mat Matter Collected 772 | 188 384 200 Remotely . | . . . Salvage Created 874 | . 522 352 Parts 53 | . 31 22 Haulers Intercepted 1 | . 1 . Recyclers Shooed . | . . . Parts Field Recycled . | . . . Retrieved Matter . | . . . Parts Self-Destructed . | . . . Prevented . | . . . Kills | -11 -10 -9 ------- Run | Yrd Mat Mat Combat Hostiles Destroyed 16 | . 8 8 Guns 12 | . 8 4 AOE 4 | . . 4 Classes Destroyed 8 | . 5 3 Worker 2 | . 1 1 Hauler 1 | . 1 . Recycler 2 | . 1 1 Operator 1 | . . 1 Watcher 5 | . 3 2 Swarmer 3 | . . 3 Grunt 12 | . 8 4 Sentry 1 | . . 1 Best Kill Streak 4 | . 4 3 Combat Bots Only 3 | . 3 2 Max Kills in Single Turn 2 | . 1 2 Gunslinging . | . . . Exploded 2 | . . 2 Melee . | . . . Uniques/NPCs Destroyed . | . . . Combat | -11 -10 -9 -------- Run | Yrd Mat Mat Hostile Shots Fired 224 | . 40 184 Missed 67 | . 12 55 Damage Taken 2022 | . 324 1698 Core 422 | . 20 402 Absorbed by Shields . | . . . Core Remaining (%) 96 | 100 92 . Volleys Fired 87 | . 46 41 Largest 2 | . 2 2 Hottest 46 | . 46 46 Shots Fired 122 | . 74 48 Gun 118 | . 74 44 Cannon . | . . . Launcher 4 | . . 4 Special . | . . . Kinetic 118 | . 74 44 Thermal . | . . . Explosive 4 | . . 4 Electromagnetic . | . . . Robot Hit Streak 9 | . 9 5 Robot Miss Streak 6 | . 6 3 Penetration Max . | . . . Secondary Targets . | . . . Shots Hit Robots 68 | . 40 28 Core Hits 41 | . 22 19 Critical Kills . | . . . Critical Parts Destroyed 1 | . . 1 Critical Strikes 1 | . . 1 Destroy 1 | . . 1 Melee Attacks . | . . . Impact . | . . . Slashing . | . . . Piercing . | . . . Sneak Attacks . | . . . Combat Hostiles . | . . . Follow-up Attacks . | . . . Damage Inflicted 1262 | . 586 676 Guns 988 | . 586 402 Cannons . | . . . Explosions 274 | . . 274 Melee . | . . . Ramming . | . . . Kinetic 988 | . 586 402 Thermal . | . . . Explosive 274 | . . 274 Electromagnetic . | . . . Impact . | . . . Slashing . | . . . Piercing . | . . . Highest Corruption 5 | . 5 . Average Corruption 2 | . 2 . Corruption Purged . | . . . Corruption Blocked . | . . . Effects 13 | . 13 . Message Errors 5 | . 5 . Matter Fused 3 | . 3 . Energy Discharges 3 | . 3 . Parts Fused 1 | . 1 . Data Loss (minor) 1 | . 1 . Overload Shots . | . . . Overflow Damage . | . . . Projectiles . | . . . Explosions . | . . . Melee . | . . . Knockbacks . | . . . Impact . | . . . Kinetic . | . . . Secondary . | . . . Self-Inflicted Damage 36 | . . 36 Shots 1 | . . 1 Rammed . | . . . Targets Rammed . | . . . Kicked . | . . . Crushed . | . . . Highest Temperature 30 | . 22 30 Average Temperature 9 | . 9 10 Received Heat Transfer 924 | . 186 738 Siege Activations . | . . . Robots Corrupted . | . . . Combat Hostiles . | . . . Parts Fried . | . . . Impact Corruptions . | . . . Robots Melted . | . . . Combat Hostiles . | . . . Parts Melted . | . . . Heat Transferred . | . . . Parts Sabotaged . | . . . Parts Stolen . | . . . Parts Stripped . | . . . Power Chain Reactions . | . . . Alert | -11 -10 -9 ------- Run | Yrd Mat Mat Peak Influence 283 | . 152 283 Initial . | . . . Average 59 | . 44 128 Maximum Alert Level 1 | . . 1 Low Security (%) 95 | 100 100 74 Level 1 4 | . . 25 Level 2 . | . . . Level 3 . | . . . Level 4 . | . . . Level 5 . | . . . High Security . | . . . Max Security . | . . . Squads Dispatched 5 | . 3 2 Investigation 4 | . 3 1 Extermination . | . . . Reinforcement 1 | . . 1 Assault . | . . . Garrison . | . . . Intercept . | . . . Searches Triggered . | . . . Construction Impeded . | . . . Haulers Reinforced . | . . . Active Scanning Responses . | . . . Cargo Convoy Interrupts . | . . . Stealth | -11 -10 -9 --------- Run | Yrd Mat Mat Distress Signals 2 | . 1 1 Communications Jammed . | . . . Distress Signals . | . . . Times Spotted 35 | . 18 17 Peak Tracking Total 5 | . 4 5 Tactical Retreats . | . . . Traps | -11 -10 -9 ------- Run | Yrd Mat Mat Traps Triggered 7 | . 7 . Indirectly . | . . . Trap Hack Attempts . | . . . Triggered . | . . . Disarmed . | . . . Reprogrammed . | . . . Reused . | . . . Traps Extracted . | . . . Installed . | . . . Triggered . | . . . Machines | -11 -10 -9 ---------- Run | Yrd Mat Mat Machines Disabled 4 | . 1 3 Max in Single Turn 1 | . 1 1 Machines Repaired . | . . . Machines Dismantled . | . . . Machines Sabotaged . | . . . Overloaded Fab Kills . | . . . Hacking | -11 -10 -9 --------- Run | Yrd Mat Mat Machines Accessed 6 | . 5 1 Terminals 6 | . 5 1 Fabricators . | . . . Repair Stations . | . . . Recycling Units . | . . . Scanalyzers . | . . . Garrison Access . | . . . Total Hacks 22 | . 17 5 Successful 14 | . 11 3 Failed 8 | . 6 2 Catastrophic 1 | . . 1 Database Lockouts . | . . . Manual 8 | . 7 1 Terminals 22 | . 17 5 Fabricators . | . . . Repair Stations . | . . . Recycling Units . | . . . Scanalyzers . | . . . Garrison Access . | . . . Terminal Hacks 8 | . 6 2 Robot Analysis 1 | . 1 . Scanalyzer Index 2 | . 1 1 Alert Level 1 | . 1 . Hauler Manifests 3 | . 2 1 Zone Layout 1 | . 1 . Fabricator Hacks . | . . . Repair Station Hacks . | . . . Recycling Unit Hacks . | . . . Scanalyzer . | . . . Garrison Access Hacks . | . . . Unauthorized Hacks 6 | . 5 1 Terminals 6 | . 5 1 Botnet 6 | . 5 1 Fabricators . | . . . Repair Stations . | . . . Recycling Units . | . . . Scanalyzers . | . . . Garrison Access . | . . . Data Cores Recovered . | . . . Used . | . . . Hacking Detections 4 | . 3 1 Full Trace Events 1 | . . 1 Feedback Events . | . . . Feedback Blocked . | . . . Robot Schematics Acquired . | . . . Robots Built . | . . . Authchips . | . . . Time . | . . . Total Robot Build Rating . | . . . Part Schematics Acquired . | . . . Parts Built . | . . . Authchips . | . . . Time . | . . . Total Part Build Rating . | . . . Parts Repaired . | . . . Time . | . . . Parts Recycled . | . . . Recycled Matter . | . . . Retrieved Matter . | . . . Retrieved Components . | . . . Parts Scanalyzed . | . . . Part Schematics Acquired . | . . . Parts Damaged . | . . . Bothacking | -11 -10 -9 ------------ Run | Yrd Mat Mat Used RIF Installer . | . . . Robots Hacked . | . . . Non-combat . | . . . Combat . | . . . Robot Hacks Applied . | . . . Relay Couplers Released . | . . . Fabnet Peak Effective % . | . . . Robots Rewired . | . . . Allies Hacked . | . . . Hacks Repelled . | . . . Allies | -11 -10 -9 -------- Run | Yrd Mat Mat Total Allies . | . . . Largest Group . | . . . Highest-Rated Group . | . . . Highest-Rated Ally . | . . . Total Orders . | . . . Ally Attacks . | . . . Total Damage . | . . . Kills . | . . . Allies Corrupted . | . . . Allies Melted . | . . . Intel | -11 -10 -9 ------- Run | Yrd Mat Mat Robot Analysis Total 1 | . 1 . Derelict Logs Recovered . | . . . Drone Launches . | . . . Drone Recoveries . | . . . Exploration | -11 -10 -9 ------------- Run | Yrd Mat Mat Turns Passed 2129 | 63 1653 413 Spaces Moved 1103 | 35 904 164 Core 3 | 3 . . Treads 1100 | 32 904 164 Legs . | . . . Wheels . | . . . Hover . | . . . Flight . | . . . Fastest Speed 50 | 50 160 160 Average Speed 164 | 150 165 161 Slowest Speed 320 | 160 240 320 Overloaded Moves . | . . . Propulsion Burnouts . | . . . Robots Hopped . | . . . Cave-ins Triggered . | . . . Exploration Rate (%) 41 | 4 99 21 Regions Visited 2 Branch Regions . Pre-discovered Areas . | . . . Known Exits Taken 1 | . 1 . Unknown Exits Taken 1 | 1 . . Scrap Searched . | . . . Spaces Dug . | . . . Terrain Destroyed 19 | . . 19 Melee . | . . . Projectile . | . . . AOE 19 | . . 19 Terrain Rammed . | . . . Walls Destroyed . | . . . Machines Disabled . | . . . Actions | -11 -10 -9 --------- Run | Yrd Mat Mat Total 1289 | 42 985 262 Wait 42 | . 5 37 Move 1101 | 34 903 164 Hop . | . . . Pick Up 21 | 2 17 2 Fast Attach 8 | 6 2 . Attach 12 | . 1 11 Detach 2 | . . 2 Swap 11 | . 6 5 Drop 5 | . 5 . Fire 87 | . 46 41 Melee . | . . . Ram . | . . . Kick . | . . . Crush . | . . . Escape Stasis . | . . . Rewire . | . . . Trap . | . . . Miscellaneous . | . . . Route ------- -11/Scrapyard -10/Materials (discovered 5 exits: *Mat x3 / [*Min] / *Sub) -9/Materials (discovered 1 exit: *Min) History --------- Turn | Location | Event 11 | -11/Scrapyard | Discovered new exit (range 13) 64 | -11/Scrapyard | Entered Materials 315 | -10/Materials | Build established: Mutant 325 | -10/Materials | Discovered new exit (range 12) 453 | -10/Materials | Discovered new exit (range 11) 885 | -10/Materials | Discovered new exit (range 8) 1112 | -10/Materials | Discovered new exit (range 6) 1184 | -10/Materials | Discovered new exit (range 6) 1194 | -10/Materials | Identified exit to Subcaves 1715 | -10/Materials | Identified exit to Materials 1717 | -10/Materials | Entered another Materials area 1717 | -9/Materials | Evolved 2 slots: Propulsion x1, Utility x1 2006 | -9/Materials | Discovered new exit (range 9) 2061 | -9/Materials | Identified exit to Mines 2114 | -9/Materials | Core integrity fell below 50% 2126 | -9/Materials | Core integrity fell below 20% 2130 | -9/Materials | Destroyed by Y-45 Defender with Beam Rifle Last Messages --------------- U-05 Engineer lays Concrete. K-01 Serf collects debris. Imp. Treads destroyed. U-05 Engineer lays Concrete. Critical hit (Burn: +37). K-01 Serf collects debris. U-05 Engineer lays Concrete. K-01 Serf collects debris. U-05 Engineer lays Concrete. K-01 Serf collects debris. A-02 Transporter destroyed. U-05 Engineer lays Concrete. Lgt. Nuclear Core destroyed. U-05 Engineer lays Concrete. K-01 Serf collects debris. U-05 Engineer lays Concrete. U-05 Engineer destroyed. K-01 Serf collects debris. U-05 Engineer lays Concrete. K-01 Serf collects debris. Map ----- +----------------------------------------------------+ | ?????????????????????????????????????????????????? | | ?????????????????????????????????????????????????? | | ?????????????????????????????????????????????????? | | ?????????????????????????????????????????????????? | | ?????????????????????????????????????????????????? | | ?????????????????????????????????????????????????? | | ?????????????????? ????????????????????????????? | | #???????????????? +???????????????????????????? | | #???????????????# #???????????????????????????? | | ###?????????????# #???????????????????????????? | | ????????????## ##??????????????????????????? | | #???????????# #??????????????????????????? | | #???????????# #??????????????????????????? | | #???????????+ #??????????????????????????? | | #???????????# #??????????????????????????? | | #???????????? ???????????????????????????? | | #????????????# #???????????????#???????????? | | +###?????????????# #?????????????? #???????????? | | ????????########## #####?##????? ?????????????? | | ????????# # ###### ###?? ??????????????? | | ????????#! # ## ##+###### ????????? | | ????????# # =%!]ku ???????? | | ????????# """ + %Yg=>! k* ???????? | | ????????# """" # at=%*! % ???????? | | ######### """"" # g]*] ##+#####???????????? | | * =!! + """"" # %##!%@ ! "#??????????????????? | | ######### """ # =##" """""#??????????????????? | | ????????# # ##########??????????????????? | | ????????########## #???????????????????????????? | | ????????????????? #??????????????????????????? | | ????????????????# #??????????????????????????? | | ????????????????# ??????????????????????????? | | ????????????????# ##?????????????????????????? | | ????????????????#[ #??????????????????????????? | | ????????????????# #??????????????????????????? | | ???????????????? #??????????????????????????? | | ????????????????//!!==#??????????????????????????? | | ?????????????????/!!==#??????????????????????????? | | ?????????????????####????????????????????????????? | | ?????????????????????????????????????????????????? | | ?????????????????????????????????????????????????? | | ?????????????????????????????????????????????????? | | ?????????????????????????????????????????????????? | | ?????????????????????????????????????????????? | | ????????????????????????????????????????????? | | ????????????????????????????????????????????? | | ????????????????????????????????????????????? | | ### ?????????????????????????????????????????????? | | ?????????????????????????????????????????????????? | | ?????????????????????????????????????????????????? | +----------------------------------------------------+ Best States ------------- Heat Dissipation 28 Energy Generation 14 Energy Capacity 160 Matter Stores 300 Matter Capacity 300 Sight Range 16 Robot Scan Range 14 Terrain Scan Density 10 Armor Coverage 225 Evasion (%) 40 Recoil Reduction 3 Item Schematics ----------------- None Robot Schematics ------------------ None Fabricated ------------ Nothing Alien Tech Used ----------------- None Achievements -------------- None Challenges ------------ None Game ------ Seed HeatHardlightClaymores Manual? 0 Play Time 00:22:35 Cumulative 3.3 hours Start 2024.04.11 @ 23:09:45 End 2024.04.11 @ 23:34:13 Sessions 1 Manual Loads 0 Difficulty Rogue Special Mode None Game No. 4 Rogue 4 Adventurer 0 Explorer 0 Win Type - Total 0 Types 0/0/0/0/0/0/0/0/0 Lore% 0 Gallery% 6 Achievement% 7 Wizard Run 0 Options --------- Layout 1 ASCII 0 Keyboard 0 Movement Mouse Keybinds 0 Fullscreen 1 Font 16/SmallcapsGlow Map View 50x35 Zoom Use 0% Tactical HUD 0 Map Filters NONE Filters NONE Steam SD RUN: b277c6ad-e5e5-437e-bdf6-c1992df33407